bitfinex/quotes_SOLUSD_20241113
["timestamp","ask_amount","ask_price","bid_price","bid_amount"]
[1731526201893,44.7177621,215.29,215.27,0.1]
[1731526202079,44.7177621,215.29,215.22,0.1]
[1731526202271,4.6436,215.35,215.23,0.1]
[1731526202272,16.2526,215.35,215.23,0.1]
[1731526202475,16.2526,215.35,215.25,0.1]
[1731526202476,44.7177621,215.26,215.25,0.1]
[1731526202672,0.12549,215.25,215.17,0.1]
[1731526202928,44.7177621,215.26,215.08,0.1]
[1731526202929,0.12549,215.17,215.08,0.1]
[1731526203097,44.7177621,215.09,215.04,0.1]
[1731526203269,44.7177621,215.07,215.01,0.1]
[1731526203473,44.7177621,215.09,215.05,0.1]
[1731526203690,44.7177621,215.07,215.03,0.1]
[1731526204000,44.7177621,215.05,215.03,0.1]
[1731526204385,44.7177621,215.05,214.98,0.1]
[1731526204592,44.7177621,215.0,214.98,0.1]
[1731526204770,16.2677,215.15,214.98,0.1]
[1731526204771,44.7177621,215.07,215.02,0.1]
[1731526205088,16.2677,215.15,214.94,0.1]
[1731526205089,28.427584,215.02,214.94,0.1]
[1731526205271,44.7177621,214.96,214.93,0.1]
[1731526205472,4.6507,215.02,214.93,0.1]
[1731526205473,44.7177621,214.98,214.93,0.1]
[1731526205985,0.12549,214.97,214.93,0.1]
[1731526206186,44.7177621,214.96,214.93,0.1]
[1731526206603,44.7177621,214.96,214.87,44.7177621]
[1731526206604,44.7177621,215.02,214.99,0.1]
[1731526206805,44.7177621,215.0,214.93,0.1]
[1731526207003,0.12549,214.93,214.89,0.1]
[1731526207211,44.7177621,214.92,214.89,0.1]
[1731526207414,0.12549,214.91,214.89,0.1]
[1731526207712,44.7177621,214.94,214.88,0.1]
[1731526207885,44.7177621,214.94,214.92,0.1]
[1731526208210,0.12549,214.93,214.9,0.1]
[1731526208414,44.7177621,214.91,214.86,0.1]
[1731526208596,44.7177621,214.87,214.84,0.1]
[1731526208789,44.7177621,214.87,214.83,0.1]
[1731526209113,44.7177621,214.85,214.83,0.1]
[1731526209318,4.6546,214.84,214.77,0.1]
[1731526209609,23.776884,214.83,214.66,0.1]
[1731526209909,23.776884,214.83,214.47,28.07]
[1731526209910,44.7177621,214.84,214.75,44.7177621]
[1731526210206,44.7177621,214.8,214.71,44.7177621]
[1731526210428,4.6531,214.91,214.59,18.615554]
[1731526210429,44.7177621,214.76,214.67,44.7177621]
[1731526210891,0.12549,214.77,214.67,44.7177621]
[1731526210892,44.7177621,214.74,214.67,44.7177621]
[1731526211211,44.7177621,214.72,214.63,44.7177621]
[1731526211415,0.1,214.84,214.55,18.619296]
[1731526211416,44.7177621,214.78,214.69,44.7177621]
[1731526212103,44.7177621,214.84,214.75,44.7177621]
[1731526212512,44.7177621,214.82,214.73,44.7177621]
[1731526212686,44.7177621,214.87,214.78,44.7177621]
[1731526213295,0.12549,214.86,214.78,44.7177621]
[1731526213495,0.12549,214.86,214.8,44.7177621]
[1731526213892,0.12549,214.87,214.7,0.2]
[1731526214091,0.12549,214.82,214.73,44.7177621]
[1731526214311,0.12549,214.78,214.71,44.7177621]
[1731526214524,0.12549,214.78,214.69,44.7177621]
[1731526214731,0.12549,214.78,214.71,44.7177621]
[1731526215113,44.7177621,214.83,214.73,44.7177621]
[1731526215317,44.7177621,214.89,214.81,44.7177621]
[1731526215613,49.3699621,214.95,214.86,44.7177621]
[1731526215945,44.7177621,214.91,214.82,44.7177621]
[1731526216230,49.3699621,214.95,214.88,44.7177621]
[1731526216437,49.3699621,214.95,214.86,44.7177621]
[1731526216729,44.7177621,214.93,214.86,44.7177621]
[1731526216930,44.7177621,214.93,214.84,44.7177621]
[1731526217135,0.12549,214.91,214.84,44.7177621]
[1731526217324,0.12549,214.84,214.76,44.7177621]
[1731526217626,0.12549,214.84,214.7,44.7177621]
[1731526217627,0.12549,214.8,214.7,44.7177621]
[1731526217835,0.12549,214.78,214.7,44.7177621]
[1731526218414,0.12549,214.78,214.59,0.1]
[1731526218415,43.91235525,214.79,214.71,44.7177621]
[1731526218733,44.7177621,214.79,214.71,44.7177621]
[1731526218917,160.5,214.86,214.73,44.7177621]
[1731526218918,44.7177621,214.81,214.73,44.7177621]
[1731526219316,44.7177621,214.79,214.71,44.7177621]
[1731526219523,44.7177621,214.73,214.65,44.7177621]
[1731526219839,44.7177621,214.71,214.63,44.7177621]
[1731526220210,44.7177621,214.77,214.69,44.7177621]
[1731526220442,0.2,214.81,214.62,0.1]
[1731526220730,176.7911,214.84,214.57,0.1]
[1731526220731,0.12549,214.74,214.67,44.7177621]
[1731526220937,0.12549,214.72,214.65,44.7177621]
[1731526221138,23.902374,214.72,214.63,44.7177621]
[1731526221320,0.12549,214.68,214.61,44.7177621]
[1731526221638,23.902374,214.66,214.57,44.7177621]
[1731526221847,23.902374,214.66,214.44,63.3478361]
[1731526221848,23.902374,214.64,214.46,0.1]
[1731526222027,23.902374,214.64,214.45,0.1]
[1731526222028,0.12549,214.62,214.55,44.7177621]
[1731526222228,23.776884,214.69,214.61,44.7177621]
[1731526222433,4.6565,214.76,214.67,44.7177621]
[1731526222751,4.6554,214.8,214.73,44.7177621]
[1731526222926,44.7177621,214.85,214.68,44.8177621]
[1731526223125,11.6338,214.9,214.79,44.7177621]
[1731526223126,44.7177621,214.86,214.79,44.7177621]
[1731526223739,44.7177621,214.88,214.79,44.7177621]
[1731526224040,44.7177621,214.92,214.85,44.7177621]
[1731526224231,49.3707621,214.92,214.83,44.7177621]
[1731526224432,44.7177621,214.95,214.87,44.7177621]
[1731526224740,49.3700621,214.95,214.87,44.7177621]
[1731526224932,49.3700621,214.95,214.85,44.7177621]
[1731526225346,44.7177621,214.93,214.85,44.7177621]
[1731526225643,0.12549,214.88,214.81,44.7177621]
[1731526225841,0.12549,214.88,214.83,44.7177621]
[1731526226152,0.12549,214.84,214.75,44.7177621]
[1731526226449,0.12549,214.76,214.61,0.1]
[1731526226627,0.12549,214.76,214.61,0.2]
[1731526226828,23.902374,214.74,214.66,44.7177621]
[1731526227038,0.12549,214.74,214.66,44.7177621]
[1731526227241,0.12549,214.7,214.62,44.7177621]
[1731526227543,23.902374,214.7,214.62,44.7177621]
[1731526227730,0.12549,214.66,214.58,44.7177621]
[1731526227931,0.12549,214.64,214.56,44.7177621]
[1731526228135,0.12549,214.64,214.44,44.7177621]
[1731526228136,44.7177621,214.69,214.6,44.7177621]
[1731526228431,4.6565,214.75,214.68,44.7177621]
[1731526228639,44.7177621,214.74,214.66,44.7177621]
[1731526228839,0.12549,214.73,214.66,44.7177621]
[1731526229041,44.7177621,214.7,214.62,44.7177621]
[1731526229359,0.12549,214.69,214.6,44.7177621]
[1731526229523,44.7177621,214.72,214.62,44.7177621]
[1731526229725,44.7177621,214.82,214.7,44.7177621]
[1731526230023,61.4796621,214.85,214.77,44.7177621]
[1731526230243,0.12549,214.84,214.75,44.7177621]
[1731526230445,61.4796621,214.85,214.75,44.7177621]
[1731526230623,61.4796621,214.85,214.56,44.7177621]
[1731526230624,44.7177621,214.83,214.73,44.7177621]
[1731526230822,44.7177621,214.75,214.67,44.7177621]
[1731526231038,0.12549,214.72,214.63,44.7177621]
[1731526231327,4.6533,214.9,214.67,0.1]
[1731526231539,165.1533,214.9,214.66,0.1]
[1731526231844,0.12549,214.83,214.75,44.7177621]
[1731526232043,0.12549,214.79,214.71,44.7177621]
[1731526232253,0.12549,214.75,214.67,44.7177621]
[1731526232424,0.1,214.83,214.57,70.4485]
[1731526232425,0.12549,214.71,214.63,44.7177621]
[1731526232629,0.12549,214.71,214.57,70.4485]
[1731526232630,0.1,214.88,214.69,44.7177621]
[1731526232846,23.776884,214.78,214.71,44.7177621]
[1731526233153,0.12549,214.77,214.71,44.7177621]
[1731526233446,44.7177621,214.75,214.66,44.7177621]
[1731526233845,0.12549,214.72,214.64,44.7177621]
[1731526234147,0.12549,214.68,214.6,44.7177621]
[1731526234342,0.12549,214.68,214.56,44.7177621]
[1731526234343,0.12549,214.64,214.56,44.7177621]
[1731526234540,44.7177621,214.63,214.52,44.7177621]
[1731526234735,44.7177621,214.65,214.56,44.7177621]
[1731526234933,44.7177621,214.67,214.58,44.7177621]
[1731526235256,44.7177621,214.69,214.6,44.7177621]
[1731526235437,44.7177621,214.73,214.65,44.7177621]
[1731526235625,44.7177621,214.73,214.57,0.1]
[1731526235626,44.7177621,214.79,214.69,44.7177621]
[1731526235825,0.12549,214.78,214.69,44.7177621]
[1731526236026,44.7177621,214.73,214.65,44.7177621]
[1731526236245,0.12549,214.7,214.61,44.7177621]
[1731526236457,44.7177621,214.69,214.61,44.7177621]
[1731526237027,160.5,214.79,214.51,0.2]
[1731526237028,44.7177621,214.67,214.59,44.7177621]
[1731526237432,160.5,214.79,214.64,44.7177621]
[1731526237433,44.7177621,214.73,214.64,44.7177621]
[1731526237646,44.7177621,214.73,214.62,44.7177621]
[1731526237840,44.7177621,214.81,214.72,44.7177621]
[1731526238041,4.6546,214.84,214.75,44.7177621]
[1731526238243,44.7177621,214.83,214.75,44.7177621]
[1731526238457,0.12549,214.82,214.68,0.1]
[1731526238653,0.12549,214.78,214.7,44.7177621]
[1731526238835,0.12549,214.76,214.68,44.7177621]
[1731526239248,0.12549,214.74,214.66,44.7177621]
[1731526239453,0.12549,214.72,214.64,44.7177621]
[1731526239838,0.12549,214.65,214.5,0.1]
[1731526240039,44.7177621,214.71,214.61,44.7177621]
[1731526240467,16.2974,214.76,214.57,44.7177621]
[1731526240468,0.12549,214.66,214.57,44.7177621]
[1731526240634,0.12549,214.66,214.45,18.629311]
[1731526240635,44.7177621,214.63,214.45,0.1]
[1731526240830,44.7177621,214.63,214.22,70.0]
[1731526240831,20.0,214.6,214.3,3.7165254]
[1731526241036,44.7177621,214.45,214.35,44.7177621]
[1731526241266,44.7177621,214.43,214.33,44.7177621]
[1731526241442,20.0,214.64,214.41,44.7177621]
[1731526241755,44.7177621,214.54,214.45,44.7177621]
[1731526241935,23.776884,214.63,214.47,44.7177621]
[1731526241936,44.7177621,214.56,214.47,44.7177621]
[1731526242140,44.7177621,214.58,214.47,44.7177621]
[1731526242344,44.7177621,214.54,214.45,44.7177621]
[1731526242545,44.7177621,214.5,214.41,44.7177621]
[1731526242939,44.7177621,214.56,214.32,44.8177621]
[1731526242940,44.7177621,214.48,214.39,44.7177621]
[1731526243143,44.7177621,214.46,214.37,44.7177621]
[1731526243451,44.7177621,214.44,214.36,11.6625]
[1731526243641,44.7177621,214.44,214.35,44.7177621]
[1731526243958,44.7177621,214.48,214.39,44.7177621]
[1731526244272,44.7177621,214.48,214.32,16.3307]
[1731526244559,44.7177621,214.5,214.4,44.7177621]
[1731526245138,44.7177621,214.5,214.4,45.0823045]
[1731526246435,44.7177621,214.52,214.44,44.7177621]
[1731526246642,44.7177621,214.54,214.44,44.7177621]
[1731526246852,44.7177621,214.6,214.52,44.7177621]
[1731526247061,44.7177621,214.63,214.52,44.7177621]
[1731526247241,44.7177621,214.57,214.47,44.7177621]
[1731526247553,44.7177621,214.52,214.42,44.7177621]
[1731526247752,44.7177621,214.52,214.44,44.7177621]
[1731526247973,44.7177621,214.58,214.49,44.7177621]
[1731526248150,44.7177621,214.55,214.4,0.3645424]
[1731526248345,44.7177621,214.55,214.46,44.7177621]
[1731526248551,0.12549,214.63,214.46,44.7177621]
[1731526248552,44.7177621,214.54,214.46,44.7177621]
[1731526248862,0.12549,214.55,214.46,44.7177621]
[1731526249061,44.7177621,214.58,214.48,44.7177621]
[1731526249264,44.7177621,214.66,214.57,44.7177621]
[1731526249454,44.7177621,214.7,214.61,44.7177621]
[1731526249657,44.7177621,214.65,214.55,44.7177621]
[1731526249849,4.6572,214.72,214.55,44.7177621]
[1731526250048,44.7177621,214.67,214.58,44.7177621]
[1731526250357,4.6572,214.72,214.52,0.1]
[1731526250358,44.7177621,214.69,214.6,44.7177621]
[1731526250567,44.7177621,214.71,214.62,44.7177621]
[1731526250875,44.7177621,214.75,214.66,44.7177621]
[1731526251048,44.7177621,214.77,214.7,44.7177621]
[1731526251244,44.7177621,214.73,214.64,44.7177621]
[1731526251470,44.7177621,214.75,214.66,44.7177621]
[1731526251776,8.52737164,215.46,214.63,0.1]
[1731526251777,0.1,214.98,214.76,0.1]
[1731526252073,44.7177621,214.94,214.76,0.1]
[1731526252271,44.7177621,214.94,214.85,44.7177621]
[1731526252455,44.7177621,214.96,214.85,44.7177621]
[1731526252960,44.7177621,214.9,214.8,44.7177621]
[1731526253167,4.6522,214.95,214.8,44.7177621]
[1731526253168,0.12549,214.87,214.8,44.7177621]
[1731526253355,0.12549,214.87,214.78,44.7177621]
[1731526253965,0.12549,214.87,214.8,44.7177621]
[1731526254164,44.7177621,214.92,214.82,44.7177621]
[1731526254370,44.7177621,214.9,214.8,44.7177621]
[1731526254573,4.6521,214.96,214.77,0.1]
[1731526254766,44.7177621,215.0,214.9,44.7177621]
[1731526255072,172.2224,215.11,214.82,0.1]
[1731526255073,44.7177621,215.02,214.95,44.7177621]
[1731526255277,13.1941,215.12,214.85,0.1]
[1731526255278,4.649,215.1,214.89,0.2]
[1731526255589,44.7177621,215.09,215.01,44.7177621]
[1731526255776,0.12549,215.08,215.01,44.7177621]
[1731526256479,49.3665621,215.11,215.03,44.7177621]
[1731526257076,44.7177621,215.09,215.01,44.7177621]
[1731526257263,44.7177621,215.07,214.97,44.7177621]
[1731526257469,44.7177621,214.99,214.91,44.7177621]
[1731526257669,0.12549,214.98,214.91,44.7177621]
[1731526257880,0.12549,214.96,214.9,11.6331]
[1731526258188,4.6507,215.02,214.95,44.7177621]
[1731526258359,0.12549,214.98,214.91,44.7177621]
[1731526258558,0.12549,214.98,214.9,11.6331]
[1731526258976,0.12549,214.96,214.87,44.7177621]
[1731526259177,0.12549,214.96,214.91,44.7177621]
[1731526259383,44.7177621,215.01,214.93,44.7177621]
[1731526260084,0.12549,215.0,214.91,44.7177621]
[1731526260879,0.12549,214.94,214.85,44.7177621]
[1731526261078,0.12549,214.9,214.83,44.7177621]
[1731526261466,160.5,214.95,214.75,31.52792]
[1731526261467,44.7177621,214.95,214.88,44.7177621]
[1731526261667,0.12549,214.92,214.84,44.7177621]
[1731526261974,0.12549,214.88,214.8,44.7177621]
[1731526262174,0.12549,214.86,214.78,44.7177621]
[1731526262384,44.7177621,214.85,214.78,44.7177621]
[1731526262591,44.7177621,214.85,214.7,44.7177621]
[1731526262592,44.7177621,214.79,214.7,44.7177621]
[1731526262885,0.12549,214.74,214.66,44.7177621]
[1731526264475,4.78239,214.74,214.66,44.7177621]
[1731526264682,44.7177621,214.75,214.66,44.7177621]
[1731526264870,44.7177621,214.73,214.55,31.142381]
[1731526265067,0.12549,214.65,214.51,32.2223]
[1731526265268,44.7177621,214.63,214.54,44.7177621]
[1731526265485,44.7177621,214.65,214.56,44.7177621]
[1731526265889,44.7177621,214.73,214.64,4.6589]
[1731526266203,160.5,214.85,214.7,44.7177621]
[1731526266372,160.5,214.91,214.67,0.2]
[1731526266696,11.6321,214.93,214.66,0.1]
[1731526266901,0.1,214.9,214.65,23.876884]
[1731526267073,0.1,214.88,214.65,23.776884]
[1731526267271,0.1,214.83,214.64,16.3063]
[1731526267472,44.7177621,214.77,214.68,44.7177621]
[1731526267787,44.7177621,214.79,214.7,44.7177621]
[1731526267975,44.7177621,214.75,214.66,44.7177621]
[1731526268176,44.7177621,214.77,214.68,44.7177621]
[1731526268497,44.7177621,214.81,214.72,44.7177621]
[1731526268994,44.7177621,214.85,214.76,44.7177621]
[1731526269289,44.7177621,214.89,214.8,44.7177621]
[1731526269671,0.12549,214.88,214.8,44.7177621]
[1731526270194,4.6534,214.9,214.83,44.7177621]
[1731526270484,44.7177621,214.99,214.89,44.7177621]
[1731526270689,44.7177621,214.99,214.91,44.7177621]
[1731526271287,44.7177621,215.05,214.95,44.7177621]
[1731526271497,44.7177621,215.11,215.02,44.7177621]
[1731526272076,0.12549,215.1,215.02,44.7177621]
[1731526272276,44.7177621,215.05,214.96,44.7177621]
[1731526272573,0.12549,215.04,214.96,44.7177621]
[1731526272773,44.7177621,215.05,214.96,44.7177621]
[1731526273079,0.12549,214.98,214.9,44.7177621]
[1731526273275,44.7177621,214.97,214.88,44.7177621]
[1731526273597,44.7177621,214.93,214.84,44.7177621]
[1731526273890,44.7177621,214.85,214.78,44.7177621]
[1731526274066,44.7177621,214.79,214.63,32.6201]
[1731526274292,44.7177621,214.81,214.72,44.7177621]
[1731526274816,44.7177621,214.75,214.66,44.7177621]
[1731526274989,4.755,214.83,214.64,44.7177621]
[1731526274990,44.7177621,214.71,214.64,44.7177621]
[1731526275307,44.7177621,214.67,214.6,44.7177621]
[1731526275509,0.12549,214.68,214.6,44.7177621]
[1731526275892,44.7177621,214.69,214.6,44.7177621]
[1731526276102,4.658,214.68,214.6,44.7177621]
[1731526276310,49.3756621,214.69,214.6,44.7177621]
[1731526276715,49.3751621,214.71,214.62,44.7177621]
[1731526277288,0.12549,214.68,214.6,44.7177621]
[1731526277495,44.7177621,214.65,214.56,44.7177621]
[1731526277915,44.7177621,214.71,214.62,44.7177621]
[1731526278116,44.7177621,214.71,214.64,44.7177621]
[1731526278307,44.7177621,214.73,214.64,44.7177621]
[1731526278490,0.12549,214.66,214.57,16.3116]
[1731526278816,44.7177621,214.69,214.62,44.7177621]
[1731526279111,0.12549,214.66,214.58,44.7177621]
[1731526279314,0.12549,214.66,214.6,44.7177621]
[1731526279523,44.7177621,214.63,214.54,44.7177621]
[1731526279824,44.7177621,214.6,214.52,44.7177621]
[1731526280022,44.7177621,214.68,214.58,44.7177621]
[1731526280191,117.16473173,214.91,214.65,44.7177621]
[1731526280192,44.7177621,214.72,214.65,44.7177621]
[1731526280393,4.6557,214.79,214.68,44.7177621]
[1731526280611,44.7177621,214.82,214.73,44.7177621]
[1731526280816,0.2,214.86,214.6,0.1]
[1731526281118,176.7888,214.87,214.7,44.7177621]
[1731526281119,44.7177621,214.79,214.7,44.7177621]
[1731526281303,4.6539,214.87,214.76,44.7177621]
[1731526281612,49.3712621,214.89,214.8,44.7177621]
[1731526281792,44.7177621,214.85,214.76,44.7177621]
[1731526281996,44.7177621,214.85,214.65,0.1]
[1731526281997,44.7177621,214.81,214.72,44.7177621]
[1731526282210,44.7177621,214.77,214.68,44.7177621]
[1731526282413,44.7177621,214.75,214.67,11.6455]
[1731526282619,44.7177621,214.73,214.64,44.7177621]
[1731526282799,44.7177621,214.73,214.54,59.1815]
[1731526282800,44.7177621,214.67,214.6,44.7177621]
[1731526283126,0.12549,214.66,214.58,44.7177621]
[1731526283417,0.12549,214.64,214.56,44.7177621]
[1731526283794,0.12549,214.64,214.58,44.7177621]
[1731526284018,0.12549,214.58,214.5,56.3726621]
[1731526284321,44.7177621,214.59,214.49,44.7177621]
[1731526284512,172.1468,214.66,214.51,44.7177621]
[1731526284513,20.0,214.6,214.51,44.7177621]
[1731526284721,0.12549,214.57,214.51,44.7177621]
[1731526284912,44.8432521,214.57,214.49,44.7177621]
[1731526285216,44.8432521,214.57,214.45,16.3207]
[1731526285217,0.12549,214.57,214.51,44.7177621]
[1731526285613,0.12549,214.58,214.49,44.7177621]
[1731526285815,4.6606,214.57,214.49,44.7177621]
[1731526286207,49.3783621,214.57,214.49,44.7177621]
[1731526286405,0.12549,214.56,214.49,44.7177621]
[1731526286715,4.6606,214.57,214.49,44.7177621]
[1731526287097,23.902374,214.54,214.45,44.7177621]
[1731526287299,0.12549,214.5,214.44,0.3645424]
[1731526287910,0.12549,214.46,214.44,0.3645424]
[1731526288118,0.1,214.52,214.44,0.3645424]
[1731526288119,160.5,214.61,214.45,44.7177621]
[1731526288322,44.7177621,214.55,214.47,44.7177621]
[1731526288622,44.7177621,214.55,214.44,0.3645424]
[1731526288623,44.7177621,214.57,214.49,44.7177621]
[1731526288800,160.5,214.69,214.48,0.1]
[1731526289123,4.6583,214.67,214.5,0.1]
[1731526289339,160.5,214.76,214.56,0.1]
[1731526289625,0.1,214.71,214.44,40.1023424]
[1731526289826,4.6578,214.69,214.55,44.7177621]
[1731526290028,49.3755621,214.69,214.59,44.7177621]
[1731526290210,49.3755621,214.69,214.48,16.3184]
[1731526290211,44.7177621,214.67,214.57,44.7177621]
[1731526290406,44.7177621,214.65,214.56,44.7177621]
[1731526290729,0.12549,214.57,214.46,44.7177621]
[1731526290929,44.7177621,214.51,214.44,0.3645424]
[1731526291105,44.7177621,214.47,214.44,0.3645424]
[1731526291310,44.8432521,214.45,214.44,0.3645424]
[1731526292013,49.5062521,214.45,214.44,0.3645424]
[1731526292215,73.2831361,214.45,214.44,0.3645424]
[1731526292418,93.2831361,214.45,214.44,0.3645424]
[1731526292621,49.5062521,214.45,214.44,0.3645424]
[1731526292825,93.2831361,214.45,214.44,0.3645424]
[1731526293224,138.0008982,214.45,214.44,0.3645424]
[1731526293419,93.2831361,214.45,214.44,0.3645424]
[1731526294211,0.1,214.71,214.44,106.1214666]
[1731526294420,44.7177621,214.58,214.47,44.7177621]
[1731526294620,44.7177621,214.58,214.44,23.2696926]
[1731526294621,44.7177621,214.51,214.44,0.3645424]
[1731526294808,0.1,214.55,214.44,0.3645424]
[1731526295020,0.1,214.52,214.44,0.3645424]
[1731526295332,0.1,214.53,214.44,0.3645424]
[1731526295509,0.1,214.5,214.44,0.3645424]
[1731526295705,0.1,214.49,214.44,0.3645424]
[1731526296133,0.1,214.5,214.44,0.3645424]
[1731526296134,20.0,214.45,214.44,0.3645424]
[1731526296435,23.902374,214.45,214.44,0.3645424]
[1731526296811,4.6624,214.48,214.44,0.3645424]
[1731526297534,44.7177621,214.54,214.44,0.3645424]
[1731526297823,44.7177621,214.58,214.48,44.7177621]
[1731526298027,44.7177621,214.58,214.44,0.3645424]
[1731526298028,44.7177621,214.6,214.52,44.7177621]
[1731526298235,165.1596,214.61,214.52,44.7177621]
[1731526298434,0.12549,214.6,214.52,44.7177621]
[1731526298735,4.6574,214.71,214.58,44.7177621]
[1731526299032,160.5,214.76,214.7,44.7177621]
[1731526299232,160.5,214.76,214.61,0.1]
[1731526299233,160.5,214.83,214.61,0.1]
[1731526299438,160.5,214.83,214.59,23.776884]
[1731526299439,176.7926,214.82,214.59,23.776884]
[1731526299616,0.12549,214.78,214.52,23.776884]
[1731526299814,0.2,214.79,214.52,23.776884]
[1731526299815,0.12549,214.76,214.52,23.776884]
[1731526300030,0.12549,214.72,214.53,4.6613]
[1731526300223,0.22549,214.7,214.49,4.6622]
[1731526300423,0.12549,214.64,214.56,44.7177621]
[1731526300618,44.7177621,214.67,214.58,44.7177621]
[1731526300823,160.5,214.66,214.58,44.7177621]
[1731526301025,160.5,214.66,214.49,16.3177]
[1731526301026,0.12549,214.62,214.54,44.7177621]
[1731526301330,0.12549,214.62,214.56,44.7177621]
[1731526301535,160.5,214.64,214.49,16.4177]
[1731526301720,0.12549,214.53,214.44,45.0823045]
[1731526302029,0.1,214.58,214.5,44.7177621]
[1731526302030,4.6609,214.55,214.5,44.7177621]
[1731526302234,4.66,214.59,214.52,44.7177621]
[1731526302533,20.12549,214.57,214.5,44.7177621]
[1731526302731,44.7177621,214.52,214.44,45.0823045]
[1731526302916,0.12549,214.48,214.44,0.3645424]
[1731526303240,43.902374,214.45,214.44,0.3645424]
[1731526303417,204.402374,214.45,214.44,0.3645424]
[1731526304228,209.065374,214.45,214.44,0.3645424]
[1731526304430,48.565374,214.45,214.44,0.3645424]
[1731526304830,165.163,214.45,214.44,0.3645424]
[1731526305211,28.565374,214.45,214.44,0.3645424]
[1731526305422,4.663,214.45,214.44,0.3645424]
[1731526305621,4.6626,214.47,214.44,0.3645424]
[1731526305837,4.6626,214.47,214.44,0.4457872]
[1731526306132,44.7177621,214.5,214.44,0.4457872]
[1731526306341,160.5,214.53,214.45,44.7177621]
[1731526306536,4.6616,214.52,214.45,44.7177621]
[1731526307037,4.6598,214.6,214.51,44.7177621]
[1731526307238,4.6598,214.6,214.45,4.663]
[1731526307239,4.6598,214.6,214.56,44.7177621]
[1731526307441,4.6598,214.6,214.54,44.7177621]
[1731526308018,44.7177621,214.57,214.48,44.7177621]
[1731526308218,0.12549,214.53,214.45,44.7177621]
[1731526308423,0.12549,214.53,214.47,44.7177621]
[1731526308736,23.902374,214.55,214.47,44.7177621]
[1731526308929,23.902374,214.53,214.45,44.7177621]
[1731526309241,23.776884,214.55,214.49,44.7177621]
[1731526309750,0.12549,214.54,214.47,44.7177621]
[1731526309920,0.12549,214.49,214.44,0.4457872]
[1731526310121,23.902374,214.51,214.44,0.4457872]
[1731526310122,44.7177621,214.46,214.44,0.4457872]
[1731526310526,0.12549,214.45,214.44,0.4457872]
[1731526311039,20.12549,214.45,214.44,0.4457872]
[1731526311248,0.12549,214.45,214.44,0.4457872]
[1731526311421,44.7177621,214.48,214.44,0.4457872]
[1731526311626,20.0,214.47,214.44,0.4457872]
[1731526312144,24.663,214.45,214.44,0.4457872]
[1731526312439,4.663,214.45,214.44,0.4457872]
[1731526312822,44.7177621,214.52,214.44,45.1635493]
[1731526313223,44.7177621,214.5,214.44,0.4457872]
[1731526313451,44.7177621,214.46,214.44,0.4457872]
[1731526313747,0.22549,214.45,214.44,0.4457872]
[1731526313941,45.0432521,214.45,214.44,8.72e-05]
[1731526314146,69.7062521,214.45,214.44,8.72e-05]
[1731526314447,24.78849,214.45,214.44,8.72e-05]
[1731526315729,4.78849,214.45,214.44,8.72e-05]
[1731526315924,4.663,214.45,214.44,8.72e-05]
[1731526316440,4.6627,214.47,214.44,8.72e-05]
[1731526316646,4.6617,214.51,214.45,44.7177621]
[1731526316826,4.6617,214.51,214.47,44.7177621]
[1731526317027,4.6617,214.51,214.45,44.7177621]
[1731526317649,0.12549,214.45,214.44,8.72e-05]
[1731526317847,4.6628,214.46,214.44,8.72e-05]
[1731526318441,44.8432521,214.45,214.44,8.72e-05]
[1731526318650,225.3432521,214.45,214.44,8.72e-05]
[1731526318823,64.8432521,214.45,214.44,8.72e-05]
[1731526319028,0.12549,214.45,214.44,8.72e-05]
[1731526319240,4.6625,214.48,214.44,8.72e-05]
[1731526319637,44.7177621,214.51,214.44,8.72e-05]
[1731526319836,4.662,214.5,214.44,44.7178493]
[1731526320144,4.6616,214.52,214.46,44.7177621]
[1731526320351,4.6616,214.52,214.44,8.72e-05]
[1731526320352,44.7177621,214.47,214.44,8.72e-05]
[1731526320653,44.8432521,214.45,214.44,8.72e-05]
[1731526321152,0.12549,214.45,214.44,8.72e-05]
[1731526321459,20.32549,214.44,214.32,44.7177621]
[1731526321742,4.6637,214.42,214.36,44.7177621]
[1731526321947,44.7177621,214.47,214.38,44.7177621]
[1731526322254,205.2177621,214.51,214.42,44.7177621]
[1731526322428,205.2177621,214.51,214.44,44.7177621]
[1731526322629,160.5,214.55,214.5,44.7177621]
[1731526322949,4.6596,214.61,214.54,44.7177621]
[1731526323125,160.5,214.69,214.59,44.7177621]
[1731526323427,4.6561,214.77,214.68,44.7177621]